Cogmind - Beta 13 @@@ ROGUE MODE // 2024.06.15 @ 23:25:40 Player: BatSpy Result: Destroyed by S-10 Pest with Light Assault Rifle Performance ------------- Evolutions (0) 0 Regions Visited (1) 200 Robots Destroyed (7) 35 Value Destroyed (209) 209 Prototype IDs (2) 40 Alien Tech Used (0) 0 Bonus (0) 0 TOTAL SCORE: 484 Bonus ------- None Cogmind --------- Core Integrity 0/250 Matter 295/300 Energy 100/100 System Corruption 0% Temperature Cool (0) Movement Core (50) Location -10/Materials Parts ------- > --- POWER (1) -------- (None) > --- PROPULSION (2) --- (None) > --- UTILITY (2) ------ Visual Processing Unit Signal Interpreter > --- WEAPON (2) ------- Small Laser Hammer > --- INVENTORY (5) ---- Ion Engine Heat Sink Heat Sink Small Storage Unit Grenade Launcher Peak State ------------ > --- POWER ------------ Ion Engine > --- PROPULSION ------- Wheel Compact Wheel > --- UTILITY ---------- Visual Processing Unit Signal Interpreter > --- WEAPON ----------- Medium Laser Small Laser > --- INVENTORY -------- Small Storage Unit Grenade Launcher [Rating: 8] Favorites ----------- Power Ion Engine Engine Ion Engine Propulsion Compact Wheel Wheel Compact Wheel Flight Unit Flight Unit Utility Signal Interpreter Processor Signal Interpreter Weapon Small Laser Energy Gun Small Laser Impact Weapon Hammer Build | -11 -10 ------- Run | Yrd Mat Slots Evolved . | . . Power . | . . Propulsion . | . . Utility . | . . Weapon . | . . Parts Attached 10 | 5 5 Power 1 | 1 . Engine 1 | 1 . Core . | . . Reactor . | . . Propulsion 3 | 2 1 Treads . | . . Leg . | . . Wheel 2 | 2 . Hover . | . . Flight 1 | . 1 Utility 2 | . 2 Device . | . . Storage . | . . Processor 2 | . 2 Hackware . | . . Protection . | . . Artifact . | . . Weapon 4 | 2 2 Energy Gun 3 | 2 1 Energy Cannon . | . . Ballistic Gun . | . . Ballistic Cannon . | . . Launcher . | . . Special Weapon . | . . Impact Weapon 1 | . 1 Slashing Weapon . | . . Piercing Weapon . | . . Special Melee Weapon . | . . Unidentified Prototypes . | . . Parts Lost 6 | . 6 Power 1 | . 1 Propulsion 3 | . 3 Utility . | . . Weapon 2 | . 2 Highest Loss Streak 4 | . 4 To Critical Strikes . | . . Average Slot Usage (%) 84 | . 84 Engine 10 | . 10 Wheel 23 | . 23 Processor 23 | . 23 Energy Gun 23 | . 23 Impact Weapon 1 | . 1 Naked Turns . | . . Heaviest Build 8 | 8 8 Greatest Support 26 | 26 26 Greatest Overweight (x) . | . . Average Overweight (x) . | . . Largest Inventory Capacity 5 | 5 5 Average Capacity 5 | 5 5 Most Carried 5 | 4 5 Average Carried 2 | 1 2 Final Capacity 5 | 5 5 Final Carried 5 | 1 5 Class Distribution -------------------- 100% | Mutant Dominant Class ---------------- Mutant | -10/Materials Resources | -11 -10 ----------- Run | Yrd Mat Matter Collected 280 | 250 30 Remotely . | . . Salvage Created 251 | . 251 Parts 16 | . 16 Haulers Intercepted . | . . Recyclers Shooed . | . . Parts Field Recycled . | . . Retrieved Matter . | . . Parts Self-Destructed . | . . Prevented . | . . Kills | -11 -10 ------- Run | Yrd Mat Combat Hostiles Destroyed 6 | . 6 Melee 1 | . 1 Guns 5 | . 5 Classes Destroyed 3 | . 3 Watcher 1 | . 1 Swarmer 1 | . 1 Grunt 5 | . 5 Best Kill Streak 2 | . 2 Combat Bots Only 2 | . 2 Max Kills in Single Turn 1 | . 1 Gunslinging . | . . Exploded . | . . Melee 1 | . 1 Uniques/NPCs Destroyed . | . . Combat | -11 -10 -------- Run | Yrd Mat Hostile Shots Fired 69 | . 69 Missed 9 | . 9 Damage Taken 637 | . 637 Core 250 | . 250 Absorbed by Shields . | . . Core Remaining (%) 100 | 100 . Volleys Fired 22 | . 22 Largest 2 | . 2 Hottest 90 | . 90 Shots Fired 37 | . 37 Gun 37 | . 37 Cannon . | . . Launcher . | . . Special . | . . Kinetic . | . . Thermal 37 | . 37 Explosive . | . . Electromagnetic . | . . Robot Hit Streak 4 | . 4 Robot Miss Streak 2 | . 2 Penetration Max . | . . Secondary Targets . | . . Shots Hit Robots 28 | . 28 Core Hits 13 | . 13 Critical Kills . | . . Critical Parts Destroyed . | . . Critical Strikes . | . . Melee Attacks 9 | . 9 Impact 9 | . 9 Slashing . | . . Piercing . | . . Sneak Attacks . | . . Combat Hostiles . | . . Follow-up Attacks . | . . Damage Inflicted 394 | . 394 Guns 295 | . 295 Cannons . | . . Explosions . | . . Melee 99 | . 99 Ramming . | . . Kinetic . | . . Thermal 295 | . 295 Explosive . | . . Electromagnetic . | . . Impact 99 | . 99 Slashing . | . . Piercing . | . . Highest Corruption . | . . Average Corruption . | . . Corruption Purged . | . . Corruption Blocked . | . . Overload Shots . | . . Overflow Damage . | . . Projectiles . | . . Explosions . | . . Melee . | . . Knockbacks . | . . Impact . | . . Kinetic . | . . Secondary . | . . Self-Inflicted Damage . | . . Shots . | . . Rammed . | . . Targets Rammed . | . . Kicked . | . . Crushed . | . . Highest Temperature 351 | . 351 Average Temperature 141 | . 141 Received Heat Transfer 225 | . 225 Effects 2 | . 2 Interference 2 | . 2 Siege Activations . | . . Robots Corrupted . | . . Combat Hostiles . | . . Parts Fried . | . . Impact Corruptions . | . . Robots Melted . | . . Combat Hostiles . | . . Parts Melted 2 | . 2 Heat Transferred 733 | . 733 Parts Sabotaged . | . . Parts Stolen . | . . Parts Stripped . | . . Power Chain Reactions . | . . Alert | -11 -10 ------- Run | Yrd Mat Peak Influence 267 | . 267 Initial . | . . Average 112 | . 127 Maximum Alert Level 1 | . 1 Low Security (%) 69 | 100 65 Level 1 30 | . 34 Level 2 . | . . Level 3 . | . . Level 4 . | . . Level 5 . | . . High Security . | . . Max Security . | . . Squads Dispatched 3 | . 3 Investigation 2 | . 2 Extermination . | . . Reinforcement 1 | . 1 Assault . | . . Garrison . | . . Intercept . | . . Searches Triggered . | . . Construction Impeded . | . . Haulers Reinforced . | . . Active Scanning Responses . | . . Cargo Convoy Interrupts . | . . Stealth | -11 -10 --------- Run | Yrd Mat Distress Signals . | . . Communications Jammed . | . . Distress Signals . | . . Times Spotted 12 | . 12 Peak Tracking Total 3 | . 3 Tactical Retreats 2 | . 2 Traps | -11 -10 ------- Run | Yrd Mat Traps Triggered . | . . Indirectly . | . . Trap Hack Attempts . | . . Triggered . | . . Disarmed . | . . Reprogrammed . | . . Reused . | . . Traps Extracted . | . . Installed . | . . Triggered . | . . Machines | -11 -10 ---------- Run | Yrd Mat Machines Disabled . | . . Max in Single Turn . | . . Machines Repaired . | . . Machines Dismantled . | . . Machines Sabotaged . | . . Overloaded Fab Kills . | . . Hacking | -11 -10 --------- Run | Yrd Mat Machines Accessed 5 | . 5 Terminals 3 | . 3 Fabricators . | . . Repair Stations . | . . Recycling Units 2 | . 2 Scanalyzers . | . . Garrison Access . | . . Total Hacks 12 | . 12 Successful 7 | . 7 Failed 5 | . 5 Catastrophic . | . . Database Lockouts . | . . Manual 8 | . 8 Terminals 10 | . 10 Fabricators . | . . Repair Stations . | . . Recycling Units 2 | . 2 Scanalyzers . | . . Garrison Access . | . . Terminal Hacks 4 | . 4 Prototype ID Bank 1 | . 1 Recycling Unit Index 1 | . 1 Locate Traps 2 | . 2 Fabricator Hacks . | . . Repair Station Hacks . | . . Recycling Unit Hacks . | . . Scanalyzer . | . . Garrison Access Hacks . | . . Unauthorized Hacks 3 | . 3 Terminals 1 | . 1 Botnet 1 | . 1 Fabricators . | . . Repair Stations . | . . Recycling Units 2 | . 2 Tunnel 2 | . 2 Scanalyzers . | . . Garrison Access . | . . Data Cores Recovered . | . . Used . | . . Hacking Detections 3 | . 3 Full Trace Events 1 | . 1 Feedback Events . | . . Feedback Blocked . | . . Robot Schematics Acquired . | . . Robots Built . | . . Authchips . | . . Time . | . . Total Robot Build Rating . | . . Part Schematics Acquired . | . . Parts Built . | . . Authchips . | . . Time . | . . Total Part Build Rating . | . . Parts Repaired . | . . Time . | . . Parts Recycled . | . . Recycled Matter . | . . Retrieved Matter . | . . Retrieved Components . | . . Parts Scanalyzed . | . . Part Schematics Acquired . | . . Parts Damaged . | . . Bothacking | -11 -10 ------------ Run | Yrd Mat Used RIF Installer . | . . Robots Hacked . | . . Non-combat . | . . Combat . | . . Robot Hacks Applied . | . . Relay Couplers Released . | . . Fabnet Peak Effective % . | . . Robots Rewired . | . . Allies Hacked . | . . Hacks Repelled . | . . Allies | -11 -10 -------- Run | Yrd Mat Total Allies . | . . Largest Group . | . . Highest-Rated Group . | . . Highest-Rated Ally . | . . Total Orders . | . . Ally Attacks . | . . Total Damage . | . . Kills . | . . Allies Corrupted . | . . Allies Melted . | . . Intel | -11 -10 ------- Run | Yrd Mat Robot Analysis Total . | . . Derelict Logs Recovered . | . . Drone Launches . | . . Drone Recoveries . | . . Exploration | -11 -10 ------------- Run | Yrd Mat Turns Passed 364 | 44 320 Spaces Moved 290 | 45 245 Core 19 | 17 2 Treads . | . . Legs . | . . Wheels 269 | 28 241 Hover . | . . Flight 2 | . 2 Fastest Speed 40 | 50 40 Average Speed 88 | 74 90 Slowest Speed 100 | 90 100 Overloaded Moves . | . . Propulsion Burnouts . | . . Robots Hopped . | . . Cave-ins Triggered . | . . Exploration Rate (%) 27 | 4 51 Regions Visited 1 Branch Regions . Pre-discovered Areas 2 | . 2 Known Exits Taken . | . . Unknown Exits Taken 1 | 1 . Scrap Searched . | . . Spaces Dug . | . . Terrain Destroyed . | . . Melee . | . . Projectile . | . . AOE . | . . Terrain Rammed . | . . Walls Destroyed . | . . Machines Disabled . | . . Actions | -11 -10 --------- Run | Yrd Mat Total 345 | 55 290 Wait 2 | . 2 Move 289 | 44 245 Hop . | . . Pick Up 13 | 6 7 Fast Attach 2 | . 2 Attach 8 | 5 3 Detach . | . . Swap . | . . Drop . | . . Fire 22 | . 22 Melee 9 | . 9 Ram . | . . Kick . | . . Crush . | . . Escape Stasis . | . . Rewire . | . . Trap . | . . Miscellaneous . | . . Route ------- -11/Scrapyard -10/Materials History --------- Turn | Location | Event 12 | -11/Scrapyard | Discovered new exit (range 16) 45 | -11/Scrapyard | Entered Materials 303 | -10/Materials | Build established: Mutant 315 | -10/Materials | Lost 4 parts (1p1n2w) 326 | -10/Materials | Core integrity fell below 50% 357 | -10/Materials | Core integrity fell below 20% 365 | -10/Materials | Destroyed by S-10 Pest with Light Assault Rifle Last Messages --------------- 00276_ K-01 Serf collects debris. 00277_ Acquired Sml. Laser. 00280_ Med. Laser destroyed. 00281_ Acquired Heat Sink. 00281_ K-01 Serf collects debris. 00284_ Wheel destroyed. 00285_ K-01 Serf collects debris. 00289_ G-34 Mercenary destroyed. 00291_ K-01 Serf collects debris. 00292_ Acquired 5 matter. 00294_ K-01 Serf collects debris. 00294_ Acquired Heat Sink. 00297_ K-01 Serf collects debris. 00321_ K-01 Serf cleans the Integration Channel. 00333_ Acquired Hammer. 00337_ Com. Wheel destroyed. 00344_ S-10 Pest destroyed. 00347_ Acquired 5 matter. 00348_ Acquired Flight Unit. 00360_ Flight Unit destroyed. Map ----- +----------------------------------------------------+ | ^ ^ ^ ######+####?????????????? | | # #?????????????? | | """ """ # ! #?????????????? | | """ """ # #?????????????? | | """ """ %# #?????????????? | | + #?? ????????? | | = %# """ """ #?? #???????? | | # ##### % =# """ """ #?? #???????? | | ? #???# # """ """ #?? #???????? | | ?? #??# ############# #???????? | | ?? #??# #???????? | | ??? #??# #???????? | | ??? #??# #???????? | | ????????######## ########## #???????? | | ??????????????##+########## #???????? | | ??????????????# # #???????? | | ??????????????# """ """ # #???????? | | ??????????????# """"""""" # #???????? | | ??????????????# """"" + +???????? | | ??????????????# # #???????? | | ??????????????# # #???????? | | ??????????????# + #???????? | | ??????????????##############+#####????? | | ???????????????????????# %* #????? | | ???????????????????????# """ #????? | | ???????????????????????# @""""" #????? | | ???????????????????????#s """"" #????? | | ???????????????????????# s""""" #????? | | ???????????????????????# """ #????? | | ???????????????????????# #????? | | ???????????????????????# ??#????? | | ???????????????????????########???????? | | ??????????????????????????????????????? | | ??????????????????????????????????????? | | ??????????????????????????????????????? | | ??????????????????????????????????????? | | ??????????????????????????????????????? | | ??????????????????????????????????????? | | ??????????????????????????????????????? | | ??????????????????????????????????????? | | ??????????????????????????????????????? | | ??????????????????????????????????????? | | ??????????????????????????????????????? | | ??????????????????????????????????????? | | ??????????????????????????????????????? | | ??????????????????????????????????????? | | ??????????????????????????????????????? | | ??????????????????????????????????????? | | ??????????????????????????????????????? | | ??????????????????????????????????????? | +----------------------------------------------------+ Best States ------------- Heat Dissipation 25 Energy Generation 10 Energy Capacity 250 Matter Stores 300 Matter Capacity 300 Sight Range 18 Terrain Scan Density 10 Evasion (%) 50 Item Schematics ----------------- None Robot Schematics ------------------ None Fabricated ------------ Nothing Alien Tech Used ----------------- None Achievements -------------- Brute Force Challenges ------------ None Game ------ Seed FlightDiametricMicrothruster Manual? 0 Play Time 00:06:43 Cumulative 39.0 hours Start 2024.06.15 @ 23:19:07 End 2024.06.15 @ 23:25:40 Sessions 1 Manual Loads 0 Difficulty Rogue Special Mode None Game No. 69 Rogue 69 Adventurer 0 Explorer 0 Win Type - Total 0 Types 0/0/0/0/0/0/0/0/0 Lore% 30 Gallery% 44 Achievement% 33 Wizard Run 0 Options --------- Layout 1 ASCII 0 Keyboard 0 Movement Mouse Keybinds 0 Fullscreen 2 Font 32/Smallcaps Map View 50x35 Zoom Use 0% Tactical HUD 1 Map Filters NONE Filters NONE Steam 1 RUN: 4933a3c1-2e82-4d78-a855-35610a63de8e